[Event "*** Titled Tuesday Blitz"]
[Site "Chess.com"]
[Date "2020.12.01"]
[Round "3"]
[White "ChronicUnhappiness"]
[Black "bazar-wokzal"]
[Result "1-0"]
[WhiteElo "2351"]
[BlackElo "2530"]
[TimeControl "180+1"]
[EndTime "10:29:31 PST"]
[Termination "ChronicUnhappiness won on time"]

1. c4 {[%clk 0:03:00.9]} 1... f5 {[%clk 0:02:59.4]} 2. d4 {[%clk 0:02:59.2]}
2... Nf6 {[%clk 0:02:58.7]} 3. Nf3 {[%clk 0:02:59.4]} 3... g6 {[%clk 0:02:57.6]}
4. g3 {[%clk 0:02:59.8]} 4... Bg7 {[%clk 0:02:57.9]} 5. Bg2 {[%clk 0:03:00.5]}
5... O-O {[%clk 0:02:58.3]} 6. O-O {[%clk 0:03:01.2]} 6... d6 {[%clk 0:02:59]}
7. b3 {[%clk 0:03:01.6]} 7... Qe8 {[%clk 0:02:46]} 8. Bb2 {[%clk 0:02:59.5]}
8... Nc6 {[%clk 0:02:39.7]} 9. d5 {[%clk 0:02:58]} 9... Nd8 {[%clk 0:02:39.7]}
10. Nd4 {[%clk 0:02:50.6]} 10... c6 {[%clk 0:02:31]} 11. dxc6 {[%clk 0:02:35.3]}
11... bxc6 {[%clk 0:02:29.2]} 12. Nc3 {[%clk 0:02:34.7]} 12... e5 {[%clk
0:02:22.5]} 13. Ndb5 {[%clk 0:02:18.3]} 13... cxb5 {[%clk 0:01:45.6]} 14. Bxa8
{[%clk 0:02:17]} 14... bxc4 {[%clk 0:01:44.7]} 15. bxc4 {[%clk 0:02:16.2]} 15...
f4 {[%clk 0:01:37.4]} 16. Nb5 {[%clk 0:02:08.2]} 16... Nf7 {[%clk 0:01:23.6]}
17. Nxd6 {[%clk 0:02:00.6]} 17... Nxd6 {[%clk 0:01:19.3]} 18. Qxd6 {[%clk
0:02:01.5]} 18... Bh3 {[%clk 0:01:19.4]} 19. Bg2 {[%clk 0:01:46.1]} 19... Bxg2
{[%clk 0:01:15.3]} 20. Kxg2 {[%clk 0:01:47]} 20... Qa8+ {[%clk 0:01:14.2]} 21.
Kg1 {[%clk 0:01:44.4]} 21... fxg3 {[%clk 0:00:55.9]} 22. hxg3 {[%clk 0:01:40.5]}
22... Re8 {[%clk 0:00:52.6]} 23. Rad1 {[%clk 0:01:21.7]} 23... Qe4 {[%clk
0:00:51.2]} 24. Qd3 {[%clk 0:01:16.4]} 24... Qg4 {[%clk 0:00:50.2]} 25. c5
{[%clk 0:01:11.1]} 25... Qh3 {[%clk 0:00:44.4]} 26. Qf3 {[%clk 0:01:06.3]} 26...
Qc8 {[%clk 0:00:31.1]} 27. Rc1 {[%clk 0:00:54.6]} 27... Kh8 {[%clk 0:00:27.8]}
28. c6 {[%clk 0:00:54.1]} 28... Qc7 {[%clk 0:00:26.3]} 29. Rfd1 {[%clk 0:00:53]}
29... h6 {[%clk 0:00:20.9]} 30. Qd3 {[%clk 0:00:46.9]} 30... Kh7 {[%clk
0:00:19.8]} 31. Qd6 {[%clk 0:00:45.1]} 31... Qb6 {[%clk 0:00:20]} 32. Bxe5
{[%clk 0:00:35.1]} 32... Ne4 {[%clk 0:00:19.1]} 33. Qd4 {[%clk 0:00:30.9]} 33...
Bxe5 {[%clk 0:00:14.1]} 34. Qxb6 {[%clk 0:00:30.2]} 34... axb6 {[%clk
0:00:14.1]} 35. Rd5 {[%clk 0:00:24.1]} 35... Nc5 {[%clk 0:00:11.4]} 36. a4
{[%clk 0:00:18.3]} 36... Na6 {[%clk 0:00:06.6]} 37. c7 {[%clk 0:00:15.7]} 37...
Bxc7 {[%clk 0:00:04.1]} 38. Rd7+ {[%clk 0:00:15.3]} 38... Kg8 {[%clk 0:00:02.9]}
39. Rcxc7 {[%clk 0:00:16]} 39... Nxc7 {[%clk 0:00:03.4]} 40. Rxc7 {[%clk
0:00:16.9]} 40... Rxe2 {[%clk 0:00:04]} 41. Rc6 {[%clk 0:00:16.5]} 41... Ra2
{[%clk 0:00:04.5]} 42. Rxg6+ {[%clk 0:00:16.1]} 42... Kh7 {[%clk 0:00:05.3]} 43.
Rxb6 {[%clk 0:00:16]} 43... Rxa4 {[%clk 0:00:06]} 44. Kg2 {[%clk 0:00:16.7]}
44... Kg7 {[%clk 0:00:06.4]} 45. Rb3 {[%clk 0:00:15.3]} 45... Rc4 {[%clk
0:00:06.9]} 46. Rf3 {[%clk 0:00:15.9]} 46... Kg6 {[%clk 0:00:07.3]} 47. Rf4
{[%clk 0:00:16.2]} 47... Rc6 {[%clk 0:00:07.9]} 48. Kf3 {[%clk 0:00:15.9]} 48...
Rb6 {[%clk 0:00:08.1]} 49. Kg4 {[%clk 0:00:16.1]} 49... Ra6 {[%clk 0:00:08.7]}
50. Rd4 {[%clk 0:00:15.9]} 50... Rb6 {[%clk 0:00:09.2]} 51. f4 {[%clk 0:00:16]}
51... Rc6 {[%clk 0:00:09.5]} 52. Re4 {[%clk 0:00:16.3]} 52... Rb6 {[%clk
0:00:09.1]} 53. Re5 {[%clk 0:00:16.7]} 53... Rf6 {[%clk 0:00:08]} 54. f5+ {[%clk
0:00:16]} 54... Kf7 {[%clk 0:00:07.7]} 55. Kf4 {[%clk 0:00:14.5]} 55... Ra6
{[%clk 0:00:07.6]} 56. g4 {[%clk 0:00:14.8]} 56... Kf6 {[%clk 0:00:07.5]} 57.
Re4 {[%clk 0:00:14.1]} 57... Rb6 {[%clk 0:00:07.9]} 58. Kg3 {[%clk 0:00:13.8]}
58... Kg5 {[%clk 0:00:07.6]} 59. Re3 {[%clk 0:00:11.2]} 59... Rc6 {[%clk
0:00:07.8]} 60. Rf3 {[%clk 0:00:10.9]} 60... h5 {[%clk 0:00:07.8]} 61. gxh5
{[%clk 0:00:09]} 61... Kxh5 {[%clk 0:00:08]} 62. Kf4 {[%clk 0:00:08.9]} 62...
Kh6 {[%clk 0:00:03.7]} 63. Rg3 {[%clk 0:00:07.9]} 1-0

[Event "*** Titled Tuesday Blitz"]
[Site "Chess.com"]
[Date "2020.12.01"]
[Round "3"]
[White "niki_2003"]
[Black "ybruned"]
[Result "0-1"]
[WhiteElo "2002"]
[BlackElo "2298"]
[TimeControl "180+1"]
[EndTime "10:29:31 PST"]
[Termination "ybruned won on time"]

1. d4 {[%clk 0:02:57.6]} 1... Nf6 {[%clk 0:02:59]} 2. c4 {[%clk 0:02:56.8]} 2...
e6 {[%clk 0:02:58.2]} 3. Nf3 {[%clk 0:02:55.7]} 3... b6 {[%clk 0:02:56.5]} 4. g3
{[%clk 0:02:54.3]} 4... Ba6 {[%clk 0:02:55]} 5. b3 {[%clk 0:02:52.8]} 5... Bb4+
{[%clk 0:02:52.6]} 6. Bd2 {[%clk 0:02:52.6]} 6... Be7 {[%clk 0:02:52.7]} 7. Bg2
{[%clk 0:02:52.4]} 7... c6 {[%clk 0:02:53.3]} 8. Nc3 {[%clk 0:02:51.4]} 8... d5
{[%clk 0:02:53.2]} 9. cxd5 {[%clk 0:02:48.3]} 9... cxd5 {[%clk 0:02:51.4]} 10.
O-O {[%clk 0:02:48.6]} 10... O-O {[%clk 0:02:50.5]} 11. Re1 {[%clk 0:02:48.6]}
11... Nbd7 {[%clk 0:02:49.8]} 12. Bg5 {[%clk 0:02:47]} 12... h6 {[%clk
0:02:48.1]} 13. Bxf6 {[%clk 0:02:45.4]} 13... Nxf6 {[%clk 0:02:48.7]} 14. e4
{[%clk 0:02:45.8]} 14... dxe4 {[%clk 0:02:46.1]} 15. Ne5 {[%clk 0:02:34.9]}
15... Bb7 {[%clk 0:02:43.6]} 16. Nxe4 {[%clk 0:02:33.2]} 16... Nxe4 {[%clk
0:02:41.2]} 17. Bxe4 {[%clk 0:02:33.2]} 17... Bxe4 {[%clk 0:02:41.9]} 18. Rxe4
{[%clk 0:02:33.3]} 18... Rc8 {[%clk 0:02:42]} 19. Qf3 {[%clk 0:02:25.5]} 19...
Qd5 {[%clk 0:02:31.9]} 20. Qd3 {[%clk 0:01:58.9]} 20... Bf6 {[%clk 0:02:15.2]}
21. Ng4 {[%clk 0:01:54.8]} 21... Qf5 {[%clk 0:01:56.8]} 22. Ne3 {[%clk
0:01:52.9]} 22... Qa5 {[%clk 0:01:48.5]} 23. Nc4 {[%clk 0:01:46.9]} 23... Qd5
{[%clk 0:01:40.8]} 24. Rd1 {[%clk 0:01:44.1]} 24... g6 {[%clk 0:01:35]} 25. Rg4
{[%clk 0:01:36.8]} 25... Bg7 {[%clk 0:01:25.3]} 26. a4 {[%clk 0:01:14.4]} 26...
Rcd8 {[%clk 0:01:20.5]} 27. Ne3 {[%clk 0:01:01.9]} 27... Qc6 {[%clk 0:01:16.3]}
28. Nc4 {[%clk 0:01:01.2]} 28... a6 {[%clk 0:01:11.9]} 29. Qe3 {[%clk
0:00:57.2]} 29... Rd5 {[%clk 0:01:04]} 30. Qf3 {[%clk 0:00:47.2]} 30... b5
{[%clk 0:00:56.3]} 31. Ne3 {[%clk 0:00:44]} 31... Rd6 {[%clk 0:00:49.4]} 32. d5
{[%clk 0:00:27.8]} 32... exd5 {[%clk 0:00:44.1]} 33. Nxd5 {[%clk 0:00:27.8]}
33... Qd7 {[%clk 0:00:43.5]} 34. axb5 {[%clk 0:00:19.4]} 34... axb5 {[%clk
0:00:40.7]} 35. Ne3 {[%clk 0:00:16.7]} 35... Rxd1+ {[%clk 0:00:30.8]} 36. Qxd1
{[%clk 0:00:16.2]} 36... Qxd1+ {[%clk 0:00:28.3]} 37. Nxd1 {[%clk 0:00:16.3]}
37... Rc8 {[%clk 0:00:28.5]} 38. Kf1 {[%clk 0:00:11.5]} 38... Bf8 {[%clk
0:00:22.7]} 39. Ke2 {[%clk 0:00:11.2]} 39... Rc2+ {[%clk 0:00:21.9]} 40. Kd3
{[%clk 0:00:10]} 40... Rc1 {[%clk 0:00:21.2]} 41. Kd2 {[%clk 0:00:10.3]} 41...
Ra1 {[%clk 0:00:20.8]} 42. Rd4 {[%clk 0:00:09.5]} 42... Ra2+ {[%clk 0:00:20.7]}
43. Kd3 {[%clk 0:00:07.7]} 43... b4 {[%clk 0:00:18.2]} 44. Rd5 {[%clk
0:00:07.4]} 44... Ra3 {[%clk 0:00:18]} 45. Kc2 {[%clk 0:00:06.5]} 45... Ra2+
{[%clk 0:00:17.4]} 46. Kd3 {[%clk 0:00:06.2]} 46... Ra8 {[%clk 0:00:15.6]} 47.
Kc4 {[%clk 0:00:06]} 47... Rc8+ {[%clk 0:00:15.2]} 48. Kd3 {[%clk 0:00:05.2]}
48... h5 {[%clk 0:00:14.6]} 49. Ne3 {[%clk 0:00:05.5]} 49... Rc3+ {[%clk
0:00:14.2]} 50. Kd2 {[%clk 0:00:04.8]} 50... Rxb3 {[%clk 0:00:14.1]} 51. Rb5
{[%clk 0:00:03.6]} 51... Rb2+ {[%clk 0:00:13.1]} 52. Ke1 {[%clk 0:00:03.3]}
52... b3 {[%clk 0:00:11.2]} 53. Nc4 {[%clk 0:00:02.9]} 53... Rb1+ {[%clk
0:00:08.5]} 54. Kd2 {[%clk 0:00:03.5]} 54... Rf1 {[%clk 0:00:07.8]} 55. Rxb3
{[%clk 0:00:02.5]} 55... Rxf2+ {[%clk 0:00:07.7]} 56. Ke3 {[%clk 0:00:03.1]}
56... Rxh2 {[%clk 0:00:07.5]} 57. Kf3 {[%clk 0:00:02.5]} 57... Rh1 {[%clk
0:00:07.7]} 58. Ne5 {[%clk 0:00:01.7]} 58... Rf1+ {[%clk 0:00:07.9]} 59. Kg2
{[%clk 0:00:01.2]} 59... Re1 {[%clk 0:00:07.1]} 0-1

[Event "*** Titled Tuesday Blitz"]
[Site "Chess.com"]
[Date "2020.12.01"]
[Round "3"]
[White "dropstoneDP"]
[Black "Vanina1989"]
[Result "1-0"]
[WhiteElo "2916"]
[BlackElo "2634"]
[TimeControl "180+1"]
[EndTime "10:29:34 PST"]
[Termination "dropstoneDP won by resignation"]

1. d4 {[%clk 0:03:00.4]} 1... d5 {[%clk 0:02:57.5]} 2. Nf3 {[%clk 0:03:00.6]}
2... Nf6 {[%clk 0:02:57.1]} 3. Bf4 {[%clk 0:03:00]} 3... c5 {[%clk 0:02:56.8]}
4. e3 {[%clk 0:03:00.4]} 4... Nc6 {[%clk 0:02:55.4]} 5. c3 {[%clk 0:02:56.3]}
5... cxd4 {[%clk 0:02:55.3]} 6. exd4 {[%clk 0:02:55.3]} 6... g6 {[%clk
0:02:43.8]} 7. Be2 {[%clk 0:02:53.1]} 7... Bg7 {[%clk 0:02:44]} 8. O-O {[%clk
0:02:53.7]} 8... O-O {[%clk 0:02:44.3]} 9. h3 {[%clk 0:02:54.4]} 9... Bf5 {[%clk
0:02:44.2]} 10. Re1 {[%clk 0:02:54.6]} 10... Ne4 {[%clk 0:02:40]} 11. Na3 {[%clk
0:02:54.6]} 11... a6 {[%clk 0:02:39.7]} 12. Nc2 {[%clk 0:02:54.8]} 12... Qb6
{[%clk 0:02:34.2]} 13. Qc1 {[%clk 0:02:54.5]} 13... Rac8 {[%clk 0:02:33.4]} 14.
Bf1 {[%clk 0:02:28.3]} 14... e5 {[%clk 0:02:12.9]} 15. Be3 {[%clk 0:02:27.2]}
15... Qc7 {[%clk 0:02:13]} 16. dxe5 {[%clk 0:02:25.3]} 16... Nxe5 {[%clk
0:02:13]} 17. Nxe5 {[%clk 0:02:24.8]} 17... Bxe5 {[%clk 0:02:12.3]} 18. Nd4
{[%clk 0:02:18.9]} 18... Bd7 {[%clk 0:02:12]} 19. Nf3 {[%clk 0:02:18]} 19... Bd6
{[%clk 0:02:10.1]} 20. Qd1 {[%clk 0:02:13.5]} 20... Bc6 {[%clk 0:02:09.9]} 21.
Nd4 {[%clk 0:02:09.9]} 21... Bd7 {[%clk 0:02:01.2]} 22. Qf3 {[%clk 0:02:06.6]}
22... f5 {[%clk 0:01:57.2]} 23. Rad1 {[%clk 0:02:04.2]} 23... Rcd8 {[%clk
0:01:56.1]} 24. Bh6 {[%clk 0:02:00.7]} 24... Rf7 {[%clk 0:01:54.2]} 25. Nc2
{[%clk 0:01:51.9]} 25... Ba4 {[%clk 0:01:49.4]} 26. b3 {[%clk 0:01:38.5]} 26...
Bc6 {[%clk 0:01:28.5]} 27. Nd4 {[%clk 0:01:35.4]} 27... Bd7 {[%clk 0:01:27]} 28.
Ne2 {[%clk 0:01:30.1]} 28... g5 {[%clk 0:01:01.6]} 29. Rxd5 {[%clk 0:01:24.9]}
29... Be6 {[%clk 0:01:01.6]} 30. Rdd1 {[%clk 0:00:46.5]} 30... Rf6 {[%clk
0:00:54.4]} 31. Nd4 {[%clk 0:00:45.4]} 31... g4 {[%clk 0:00:52.5]} 32. Nxe6
{[%clk 0:00:31.1]} 32... Bh2+ {[%clk 0:00:34.6]} 33. Kh1 {[%clk 0:00:31.4]}
33... Rxd1 {[%clk 0:00:34.4]} 34. Nxc7 {[%clk 0:00:18.7]} 34... gxf3 {[%clk
0:00:33.2]} 35. Bc4+ {[%clk 0:00:17.4]} 35... Kh8 {[%clk 0:00:30.5]} 36. Rxd1
{[%clk 0:00:18]} 36... Bxc7 {[%clk 0:00:30.5]} 37. Be3 {[%clk 0:00:15]} 37...
fxg2+ {[%clk 0:00:26.1]} 38. Kxg2 {[%clk 0:00:15.1]} 38... Rg6+ {[%clk
0:00:26.6]} 39. Kf1 {[%clk 0:00:13.8]} 39... Be5 {[%clk 0:00:15.1]} 40. Rd8+
{[%clk 0:00:13.5]} 40... Kg7 {[%clk 0:00:15.1]} 41. Rd7+ {[%clk 0:00:13.4]}
41... Kf8 {[%clk 0:00:13.3]} 42. Rxb7 {[%clk 0:00:11.7]} 42... f4 {[%clk
0:00:13.5]} 43. Bxf4 {[%clk 0:00:07.7]} 43... Bxf4 {[%clk 0:00:13.1]} 44. Rf7+
{[%clk 0:00:08.3]} 44... Ke8 {[%clk 0:00:13.7]} 45. Rxf4 {[%clk 0:00:08.9]}
45... Nd2+ {[%clk 0:00:11.7]} 46. Ke2 {[%clk 0:00:09.2]} 46... Nxc4 {[%clk
0:00:12.1]} 47. Rxc4 {[%clk 0:00:10.1]} 47... Kd7 {[%clk 0:00:12.6]} 48. Rh4
{[%clk 0:00:08.4]} 48... h6 {[%clk 0:00:12.4]} 49. Rh5 {[%clk 0:00:08.6]} 49...
Kc6 {[%clk 0:00:12.6]} 50. c4 {[%clk 0:00:08.5]} 50... Kb6 {[%clk 0:00:12.3]}
51. b4 {[%clk 0:00:08.2]} 51... Rc6 {[%clk 0:00:11.6]} 52. Kd3 {[%clk 0:00:08]}
52... Rf6 {[%clk 0:00:11.8]} 53. a4 {[%clk 0:00:07.7]} 53... Rxf2 {[%clk
0:00:10.9]} 54. Rxh6+ {[%clk 0:00:07.1]} 54... Kb7 {[%clk 0:00:10.9]} 55. Rh7+
{[%clk 0:00:07.4]} 55... Kb6 {[%clk 0:00:10.6]} 56. a5+ {[%clk 0:00:07.3]} 56...
Kc6 {[%clk 0:00:11.2]} 57. Rh6+ {[%clk 0:00:07.7]} 57... Kb7 {[%clk 0:00:11.7]}
58. h4 {[%clk 0:00:06.2]} 58... Rf4 {[%clk 0:00:11]} 59. h5 {[%clk 0:00:05.9]}
59... Rh4 {[%clk 0:00:11.3]} 60. Rh7+ {[%clk 0:00:05.9]} 60... Kc6 {[%clk
0:00:11.6]} 61. Ra7 {[%clk 0:00:05.9]} 61... Rh3+ {[%clk 0:00:10.2]} 62. Kc2
{[%clk 0:00:06.1]} 62... Rxh5 {[%clk 0:00:08.4]} 63. Rxa6+ {[%clk 0:00:05.9]}
63... Kb7 {[%clk 0:00:09.1]} 64. Rb6+ {[%clk 0:00:06.6]} 64... Ka7 {[%clk
0:00:09.6]} 65. Kb3 {[%clk 0:00:07.1]} 65... Rh1 {[%clk 0:00:09.2]} 66. Ka4
{[%clk 0:00:07.3]} 66... Rh5 {[%clk 0:00:08.8]} 67. c5 {[%clk 0:00:06.9]} 1-0

[Event "*** Titled Tuesday Blitz"]
[Site "Chess.com"]
[Date "2020.12.01"]
[Round "3"]
[White "AlexTriapishko"]
[Black "chess94cu"]
[Result "0-1"]
[WhiteElo "2795"]
[BlackElo "2567"]
[TimeControl "180+1"]
[EndTime "10:29:36 PST"]
[Termination "chess94cu won on time"]

1. d4 {[%clk 0:03:00.9]} 1... Nf6 {[%clk 0:02:59]} 2. Bg5 {[%clk 0:03:01.4]}
2... c5 {[%clk 0:02:57.9]} 3. d5 {[%clk 0:03:00.6]} 3... Ne4 {[%clk 0:02:57.9]}
4. Bf4 {[%clk 0:02:59]} 4... d6 {[%clk 0:02:56.3]} 5. f3 {[%clk 0:02:58.4]} 5...
Nf6 {[%clk 0:02:56]} 6. e4 {[%clk 0:02:58.9]} 6... Qb6 {[%clk 0:02:54.3]} 7. Bc1
{[%clk 0:02:54.9]} 7... g6 {[%clk 0:02:53.4]} 8. c4 {[%clk 0:02:50.3]} 8... Bg7
{[%clk 0:02:34.1]} 9. Nc3 {[%clk 0:02:50.1]} 9... O-O {[%clk 0:02:25.2]} 10.
Nge2 {[%clk 0:02:50.3]} 10... e6 {[%clk 0:02:23.8]} 11. Nf4 {[%clk 0:02:50.5]}
11... e5 {[%clk 0:02:21.5]} 12. Nd3 {[%clk 0:02:47.8]} 12... Nbd7 {[%clk
0:02:19.6]} 13. a4 {[%clk 0:02:45.8]} 13... Qd8 {[%clk 0:02:18.7]} 14. Be2
{[%clk 0:02:41]} 14... Ne8 {[%clk 0:02:06]} 15. O-O {[%clk 0:02:35.1]} 15... f5
{[%clk 0:02:05.9]} 16. exf5 {[%clk 0:02:29.5]} 16... gxf5 {[%clk 0:02:05.8]} 17.
f4 {[%clk 0:02:30]} 17... e4 {[%clk 0:02:02.3]} 18. Nf2 {[%clk 0:02:30.4]} 18...
Nef6 {[%clk 0:01:56.5]} 19. Ra3 {[%clk 0:02:27.8]} 19... Kh8 {[%clk 0:01:42.9]}
20. Kh1 {[%clk 0:02:21.7]} 20... Rg8 {[%clk 0:01:42.1]} 21. Nb5 {[%clk
0:02:19.7]} 21... Qe7 {[%clk 0:01:41.7]} 22. Nc7 {[%clk 0:02:18.8]} 22... Rb8
{[%clk 0:01:41.4]} 23. Ne6 {[%clk 0:02:19.4]} 23... Bh6 {[%clk 0:01:38]} 24. Rh3
{[%clk 0:02:19]} 24... Rg6 {[%clk 0:01:35.2]} 25. b3 {[%clk 0:02:14.4]} 25...
Nf8 {[%clk 0:01:33.3]} 26. Nxf8 {[%clk 0:01:55.9]} 26... Bxf8 {[%clk 0:01:33.1]}
27. Bb2 {[%clk 0:01:52]} 27... Bg7 {[%clk 0:01:33.1]} 28. Rg1 {[%clk 0:01:43.6]}
28... Bd7 {[%clk 0:01:29.2]} 29. Ba1 {[%clk 0:01:38.4]} 29... Re8 {[%clk
0:01:15.2]} 30. Bh5 {[%clk 0:01:38]} 30... Nxh5 {[%clk 0:01:14.6]} 31. Qxh5
{[%clk 0:01:37.6]} 31... Bxa1 {[%clk 0:01:06]} 32. Rxa1 {[%clk 0:01:04.4]} 32...
Reg8 {[%clk 0:01:04.9]} 33. Rg1 {[%clk 0:00:55.4]} 33... Qg7 {[%clk 0:00:54.6]}
34. Nd1 {[%clk 0:00:48.9]} 34... Be8 {[%clk 0:00:40.7]} 35. Ne3 {[%clk
0:00:40.9]} 35... Rf6 {[%clk 0:00:40.2]} 36. Qh4 {[%clk 0:00:35.7]} 36... Bg6
{[%clk 0:00:37.6]} 37. g4 {[%clk 0:00:34.7]} 37... fxg4 {[%clk 0:00:37.4]} 38.
Rxg4 {[%clk 0:00:35.4]} 38... Qf7 {[%clk 0:00:32.5]} 39. Rhg3 {[%clk 0:00:28.5]}
39... Rf8 {[%clk 0:00:28.6]} 40. Qg5 {[%clk 0:00:19.6]} 40... Rxf4 {[%clk
0:00:24.2]} 41. Rxf4 {[%clk 0:00:15.4]} 41... Qxf4 {[%clk 0:00:25.1]} 42. Qxf4
{[%clk 0:00:16]} 42... Rxf4 {[%clk 0:00:25.1]} 43. Kg1 {[%clk 0:00:12.5]} 43...
Kg7 {[%clk 0:00:24.2]} 44. Rg4 {[%clk 0:00:07]} 44... Rxg4+ {[%clk 0:00:17.7]}
45. Nxg4 {[%clk 0:00:07.9]} 45... h5 {[%clk 0:00:18.1]} 46. Ne3 {[%clk
0:00:05.3]} 46... Kf6 {[%clk 0:00:18.7]} 47. Kf2 {[%clk 0:00:06]} 47... Ke5
{[%clk 0:00:19]} 48. Ke2 {[%clk 0:00:06.1]} 48... Kd4 {[%clk 0:00:18.9]} 49. Kd2
{[%clk 0:00:06.6]} 49... Ke5 {[%clk 0:00:17]} 50. Ke2 {[%clk 0:00:06.7]} 50...
Kf4 {[%clk 0:00:17.6]} 51. Kf2 {[%clk 0:00:05.7]} 51... b6 {[%clk 0:00:14.5]}
52. Ng2+ {[%clk 0:00:03.6]} 52... Ke5 {[%clk 0:00:14.6]} 53. Ke3 {[%clk
0:00:03.7]} 53... a6 {[%clk 0:00:10.6]} 54. Nf4 {[%clk 0:00:04]} 54... Bf7
{[%clk 0:00:11]} 55. Ne2 {[%clk 0:00:03.3]} 55... b5 {[%clk 0:00:10.7]} 56. axb5
{[%clk 0:00:03.8]} 56... axb5 {[%clk 0:00:11.6]} 57. Nf4 {[%clk 0:00:03.6]}
57... b4 {[%clk 0:00:11.4]} 58. h4 {[%clk 0:00:02.7]} 58... Be8 {[%clk
0:00:10.7]} 59. Nh3 {[%clk 0:00:02.8]} 59... Ba4 {[%clk 0:00:08.3]} 60. bxa4
{[%clk 0:00:03.1]} 60... b3 {[%clk 0:00:08.7]} 61. Kd2 {[%clk 0:00:03.7]} 61...
e3+ {[%clk 0:00:09.2]} 62. Kc3 {[%clk 0:00:02.4]} 62... e2 {[%clk 0:00:09.3]}
63. Ng1 {[%clk 0:00:02]} 63... e1=Q+ {[%clk 0:00:09.5]} 0-1

[Event "*** Titled Tuesday Blitz"]
[Site "Chess.com"]
[Date "2020.12.01"]
[Round "3"]
[White "Gogolev_Artemy"]
[Black "Jabberwockiez"]
[Result "1-0"]
[WhiteElo "2421"]
[BlackElo "2227"]
[TimeControl "180+1"]
[EndTime "10:29:37 PST"]
[Termination "Gogolev_Artemy won by checkmate"]

1. Nf3 {[%clk 0:02:48.6]} 1... d5 {[%clk 0:02:59.8]} 2. c4 {[%clk 0:02:47.9]}
2... dxc4 {[%clk 0:03:00.1]} 3. Qa4+ {[%clk 0:02:46.5]} 3... c6 {[%clk
0:02:58.9]} 4. Qxc4 {[%clk 0:02:45.5]} 4... b5 {[%clk 0:02:59.6]} 5. Qc2 {[%clk
0:02:45.3]} 5... Bb7 {[%clk 0:02:59.9]} 6. g3 {[%clk 0:02:44.6]} 6... e6 {[%clk
0:03:00.3]} 7. Bg2 {[%clk 0:02:44.1]} 7... Nf6 {[%clk 0:03:00.9]} 8. O-O {[%clk
0:02:42.8]} 8... Be7 {[%clk 0:03:01]} 9. a4 {[%clk 0:02:40.8]} 9... a6 {[%clk
0:03:00.3]} 10. d3 {[%clk 0:02:38.1]} 10... O-O {[%clk 0:02:59.9]} 11. Nc3
{[%clk 0:02:37.3]} 11... Nbd7 {[%clk 0:02:58.1]} 12. Rd1 {[%clk 0:02:33.1]}
12... Nb6 {[%clk 0:02:49.3]} 13. Bg5 {[%clk 0:02:28.8]} 13... h6 {[%clk
0:02:46.8]} 14. Bxf6 {[%clk 0:02:28.5]} 14... Bxf6 {[%clk 0:02:47.7]} 15. a5
{[%clk 0:02:18.2]} 15... Nd5 {[%clk 0:02:44]} 16. Ne4 {[%clk 0:02:17.6]} 16...
Be7 {[%clk 0:02:38.8]} 17. d4 {[%clk 0:02:17.2]} 17... Rc8 {[%clk 0:02:32.8]}
18. Nc5 {[%clk 0:02:07.8]} 18... Bxc5 {[%clk 0:02:32.6]} 19. Qxc5 {[%clk
0:02:06.7]} 19... Qf6 {[%clk 0:02:04.2]} 20. Rac1 {[%clk 0:01:59.3]} 20... Qf5
{[%clk 0:01:45.1]} 21. Ne5 {[%clk 0:01:50.8]} 21... Ne7 {[%clk 0:01:33]} 22.
Qxe7 {[%clk 0:01:46.1]} 22... Ba8 {[%clk 0:01:26.3]} 23. Qc5 {[%clk 0:01:40.9]}
23... Rfd8 {[%clk 0:01:24.8]} 24. e3 {[%clk 0:01:25.3]} 24... f6 {[%clk
0:01:21.1]} 25. Nd3 {[%clk 0:01:24]} 25... e5 {[%clk 0:01:17.4]} 26. Nb4 {[%clk
0:01:13.2]} 26... Bb7 {[%clk 0:01:06.9]} 27. Qb6 {[%clk 0:01:09.6]} 27... Rd7
{[%clk 0:00:54.7]} 28. Nxc6 {[%clk 0:00:59.4]} 28... Bxc6 {[%clk 0:00:48.6]} 29.
Bxc6 {[%clk 0:00:56.7]} 29... Rd6 {[%clk 0:00:38.4]} 30. dxe5 {[%clk 0:00:45.7]}
30... Rxd1+ {[%clk 0:00:27]} 31. Rxd1 {[%clk 0:00:43.3]} 31... Qc2 {[%clk
0:00:26.9]} 32. Rd8+ {[%clk 0:00:38.6]} 32... Rxd8 {[%clk 0:00:23.7]} 33. Qxd8+
{[%clk 0:00:39.5]} 33... Kh7 {[%clk 0:00:23.6]} 34. Qd5 {[%clk 0:00:26.1]} 34...
Qc1+ {[%clk 0:00:22.3]} 35. Kg2 {[%clk 0:00:25.4]} 35... fxe5 {[%clk 0:00:22.2]}
36. Qe4+ {[%clk 0:00:23.2]} 36... Kh8 {[%clk 0:00:20.7]} 37. Be8 {[%clk
0:00:20.9]} 37... Qxb2 {[%clk 0:00:18.3]} 38. Bg6 {[%clk 0:00:20.9]} 38... Qb3
{[%clk 0:00:15.2]} 39. Qa8+ {[%clk 0:00:18.9]} 39... Qg8 {[%clk 0:00:15.2]} 40.
Qxg8+ {[%clk 0:00:19]} 40... Kxg8 {[%clk 0:00:16.1]} 41. Kf3 {[%clk 0:00:19]}
41... Kf8 {[%clk 0:00:13.9]} 42. Ke4 {[%clk 0:00:19.1]} 42... Ke7 {[%clk
0:00:14.3]} 43. Kxe5 {[%clk 0:00:19.5]} 43... Kd7 {[%clk 0:00:14.6]} 44. Kd5
{[%clk 0:00:19]} 44... Kc7 {[%clk 0:00:15]} 45. Kc5 {[%clk 0:00:19.3]} 45... Kb7
{[%clk 0:00:14.8]} 46. Bd3 {[%clk 0:00:19.6]} 46... Ka7 {[%clk 0:00:13.4]} 47.
e4 {[%clk 0:00:19.7]} 47... Kb7 {[%clk 0:00:13.3]} 48. e5 {[%clk 0:00:20.5]}
48... Kc7 {[%clk 0:00:13.7]} 49. f4 {[%clk 0:00:21.4]} 49... Kb7 {[%clk
0:00:13.2]} 50. f5 {[%clk 0:00:22.3]} 50... Kc7 {[%clk 0:00:13.6]} 51. f6 {[%clk
0:00:23.1]} 51... gxf6 {[%clk 0:00:14]} 52. exf6 {[%clk 0:00:24]} 52... Kd7
{[%clk 0:00:14.5]} 53. g4 {[%clk 0:00:22.4]} 53... Ke6 {[%clk 0:00:14.7]} 54.
Bxb5 {[%clk 0:00:21.5]} 54... axb5 {[%clk 0:00:14.1]} 55. a6 {[%clk 0:00:21.5]}
55... Kxf6 {[%clk 0:00:14.5]} 56. a7 {[%clk 0:00:21.5]} 56... b4 {[%clk
0:00:14.9]} 57. a8=Q {[%clk 0:00:21.6]} 57... b3 {[%clk 0:00:14.4]} 58. Qe4
{[%clk 0:00:20.9]} 58... b2 {[%clk 0:00:13.3]} 59. Qf5+ {[%clk 0:00:21.1]} 59...
Kg7 {[%clk 0:00:13.2]} 60. Kd6 {[%clk 0:00:20.9]} 60... b1=Q {[%clk 0:00:11.2]}
61. Qxb1 {[%clk 0:00:20.3]} 61... h5 {[%clk 0:00:11.4]} 62. Qf5 {[%clk
0:00:21.2]} 62... hxg4 {[%clk 0:00:10.9]} 63. Ke7 {[%clk 0:00:20.8]} 63... g3
{[%clk 0:00:10.1]} 64. Qg4+ {[%clk 0:00:20]} 64... Kh8 {[%clk 0:00:09]} 65. hxg3
{[%clk 0:00:13.2]} 65... Kh7 {[%clk 0:00:08]} 66. Kf7 {[%clk 0:00:12.8]} 66...
Kh6 {[%clk 0:00:07.7]} 67. Qh4# {[%clk 0:00:13.5]} 1-0